bitfinex/quotes_SOLUSD_20240824
["timestamp","ask_amount","ask_price","bid_price","bid_amount"]
[1724540383777,16.3388,159.34,159.31,10.88651416]
[1724540385574,16.3388,159.34,159.32,20.0]
[1724540385776,15.616,159.38,159.32,20.0]
[1724540390294,15.616,159.32,159.21,20.0]
[1724540390482,15.616,159.32,159.23,10.88651416]
[1724540390853,15.616,159.32,159.24,2.84898794]
[1724540392080,15.616,159.32,159.25,2.84932209]
[1724540392290,15.616,159.32,159.24,2.84932209]
[1724540392476,15.616,159.32,159.25,2.84932209]
[1724540392674,15.616,159.32,159.24,22.84932209]
[1724540392982,15.616,159.32,159.25,2.84932209]
[1724540393191,15.616,159.32,159.24,20.0]
[1724540393768,15.616,159.32,159.25,2.8494099]
[1724540393989,15.616,159.32,159.26,2.8494099]
[1724540394167,15.616,159.32,159.25,2.8494099]
[1724540394570,15.616,159.32,159.26,2.8494099]
[1724540394786,15.616,159.32,159.25,2.8494099]
[1724540394994,15.616,159.32,159.26,2.8494099]
[1724540395185,15.616,159.32,159.25,2.8494099]
[1724540395504,15.616,159.32,159.26,2.8494099]
[1724540395689,15.616,159.32,159.25,2.8494099]
[1724540395889,15.616,159.32,159.24,20.0]
[1724540395890,10.88651416,159.31,159.26,2.8494099]
[1724540396073,10.88651416,159.31,159.25,2.8494099]
[1724540396597,10.88651416,159.31,159.22,22.8494099]
[1724540396771,10.88651416,159.31,159.23,2.8494099]
[1724540397095,10.88651416,159.31,159.24,2.8494099]
[1724540397272,10.88651416,159.31,159.23,2.8494099]
[1724540397594,10.88651416,159.31,159.24,2.8494099]
[1724540397786,10.88651416,159.31,159.23,2.8494099]
[1724540397968,10.88651416,159.31,159.24,2.8494099]
[1724540398170,15.616,159.32,159.23,13.73592406]
[1724540398468,15.616,159.32,159.25,10.88651416]
[1724540398789,15.616,159.32,159.26,21.25552957]
[1724540399478,15.616,159.32,159.27,13.73530673]
[1724540399662,15.616,159.32,159.28,20.0]
[1724540401276,15.616,159.32,159.26,20.0]
[1724540402295,26.50251416,159.32,159.26,20.0]
[1724540402594,26.50251416,159.32,159.24,20.0]
[1724540402803,26.50251416,159.32,159.25,7.36869829]
[1724540402983,26.50251416,159.32,159.26,20.0]
[1724540403577,26.50251416,159.32,159.24,20.0]
[1724540403798,26.50251416,159.32,159.25,7.37168455]
[1724540404102,26.50251416,159.32,159.26,20.0]
[1724540404285,15.616,159.32,159.26,20.0]
[1724540404783,15.616,159.32,159.27,2.84915836]
[1724540405475,15.616,159.32,159.26,20.0]
[1724540406802,15.616,159.32,159.27,2.8516964]
[1724540408102,15.616,159.32,159.27,2.85121333]
[1724540408691,15.616,159.32,159.21,20.0]
[1724540408890,15.616,159.32,159.23,10.88651416]
[1724540409074,15.616,159.32,159.24,22.8514945]
[1724540409282,15.616,159.32,159.25,7.37807611]
[1724540409482,15.616,159.32,159.26,20.0]
[1724540409700,15.616,159.32,159.27,2.8514945]
[1724540410390,15.616,159.32,159.26,20.0]
[1724540411007,15.616,159.32,159.24,20.0]
[1724540411210,15.616,159.32,159.25,2.85137605]
[1724540412209,15.616,159.32,159.26,1.57123345]
[1724540412513,15.616,159.32,159.27,1.57123345]
[1724540412713,15.616,159.32,159.28,1.57123345]
[1724540413017,15.616,159.32,159.25,2.85137605]
[1724540413211,15.616,159.32,159.26,1.57126788]
[1724540413506,15.616,159.32,159.27,1.57126788]
[1724540413708,15.616,159.32,159.28,1.57126788]
[1724540413923,15.616,159.32,159.25,2.85136985]
[1724540414210,15.616,159.32,159.26,1.57127031]
[1724540414414,15.616,159.32,159.27,1.57127031]
[1724540414721,15.616,159.32,159.28,1.57127031]
[1724540414901,15.616,159.32,159.25,2.85136985]
[1724540415093,15.616,159.32,159.26,1.57126659]
[1724540415296,15.616,159.32,159.27,1.57126659]
[1724540415496,15.616,159.32,159.28,1.57126659]
[1724540415695,15.616,159.32,159.25,2.85136985]
[1724540416016,15.616,159.32,159.26,1.57122802]
[1724540416200,15.616,159.32,159.27,1.57122802]
[1724540416401,15.616,159.32,159.28,1.57122802]
[1724540416598,15.616,159.32,159.25,2.85136985]
[1724540416919,15.616,159.32,159.26,1.57123059]
[1724540417103,15.616,159.32,159.27,1.57123044]
[1724540417313,15.616,159.32,159.28,1.57123044]
[1724540417493,15.616,159.32,159.29,1.57115942]
[1724540417693,15.616,159.32,159.27,2.84704108]
[1724540417895,15.616,159.32,159.28,1.57115913]
[1724540418099,15.616,159.32,159.29,1.57115913]
[1724540418301,15.616,159.32,159.27,5.693037]
[1724540418612,15.616,159.32,159.28,1.57116057]
[1724540418818,15.616,159.32,159.29,1.57116057]
[1724540419003,15.616,159.32,159.27,2.84599592]
[1724540419299,15.616,159.32,159.28,1.57116027]
[1724540419492,15.616,159.32,159.29,1.57116027]
[1724540419693,15.616,159.32,159.27,2.84599592]
[1724540419894,15.616,159.32,159.28,1.57116057]
[1724540420108,15.616,159.32,159.29,1.57116057]
[1724540420314,15.616,159.32,159.27,2.84599592]
[1724540420516,15.616,159.32,159.28,1.57115042]
[1724540420706,15.616,159.32,159.29,1.57115042]
[1724540420910,15.616,159.32,159.27,2.84599592]
[1724540421116,15.616,159.32,159.28,1.57114084]
[1724540421304,15.616,159.32,159.29,12.457655]
[1724540421508,15.7716,159.36,159.3,21.57114084]
[1724540421804,15.7716,159.36,159.31,1.57114084]
[1724540422125,15.7716,159.36,159.3,20.0]
[1724540422422,15.7716,159.36,159.31,1.57097512]
[1724540422718,15.7716,159.36,159.3,20.0]
[1724540422925,15.7716,159.36,159.31,1.57096383]
[1724540423102,15.7716,159.36,159.3,20.0]
[1724540423311,15.7716,159.36,159.31,1.57096512]
[1724540423521,15.7716,159.36,159.3,20.0]
[1724540423725,15.7716,159.36,159.31,1.57096497]
[1724540423903,15.7716,159.36,159.3,20.0]
[1724540424102,15.7716,159.36,159.31,1.57096397]
[1724540424304,15.7716,159.36,159.3,20.0]
[1724540424505,15.7716,159.36,159.31,1.57096397]
[1724540424712,15.7716,159.36,159.3,20.0]
[1724540425005,15.7716,159.36,159.31,1.5709714]
[1724540425208,15.7716,159.36,159.32,1.57085521]
[1724540425409,15.7716,159.36,159.3,20.0]
[1724540425620,15.7716,159.36,159.31,1.57084398]
[1724540425816,15.7716,159.36,159.32,1.57084398]
[1724540425999,15.7716,159.36,159.3,20.0]
[1724540426204,15.7716,159.36,159.31,1.57085828]
[1724540426416,15.7716,159.36,159.3,20.0]
[1724540426725,15.7716,159.36,159.31,1.57089298]
[1724540426932,15.7716,159.36,159.32,1.57089412]
[1724540427133,15.7716,159.36,159.28,20.0]
[1724540427330,15.7716,159.36,159.29,1.57089358]
[1724540427708,15.7716,159.36,159.3,1.57089358]
[1724540427917,10.88651416,159.35,159.31,1.57089358]
[1724540428234,6.3919,159.32,159.29,1.57117941]
[1724540428436,6.3919,159.32,159.23,10.88651416]
[1724540428735,6.3919,159.32,159.24,1.57115016]
[1724540428901,6.3919,159.32,159.25,1.57115016]
[1724540429101,26.65811416,159.31,159.26,1.57115016]
[1724540429307,26.65811416,159.31,159.27,1.57115016]
[1724540429514,26.65811416,159.31,159.28,1.57115016]
[1724540429803,26.65811416,159.31,159.23,20.0]
[1724540430017,26.65811416,159.31,159.24,1.57128973]
[1724540430331,15.7716,159.31,159.25,1.57128973]
[1724540430523,15.7716,159.31,159.26,1.57128973]
[1724540430721,15.7716,159.31,159.27,1.57128973]
[1724540431030,15.7716,159.31,159.25,20.0]
[1724540431330,15.7716,159.31,159.26,1.57138533]
[1724540431537,15.7716,159.31,159.27,1.57138533]
[1724540431737,15.7716,159.31,159.25,20.0]
[1724540431907,15.7716,159.31,159.26,1.57133818]
[1724540432102,15.7716,159.31,159.27,1.57133818]
[1724540432314,15.7716,159.31,159.25,20.0]
[1724540432516,15.7716,159.31,159.26,1.57133818]
[1724540432729,15.7716,159.31,159.27,1.57133818]
[1724540432929,15.7716,159.31,159.25,20.0]
[1724540433139,15.7716,159.31,159.26,1.57133818]
[1724540433341,15.7716,159.31,159.27,1.57133818]
[1724540433646,15.7716,159.31,159.25,20.0]
[1724540434615,17.16391416,159.3,159.23,20.0]
[1724540436243,6.1999,159.26,159.18,10.88651416]
[1724540438217,6.1999,159.26,159.19,20.0]
[1724540445161,17.08641416,159.26,159.17,10.88651416]
[1724540445365,16.1667,159.25,159.18,20.0]
[1724540445657,17.08641416,159.26,159.18,20.0]
[1724540445658,10.88651416,159.22,159.18,20.0]
[1724540445849,10.88651416,159.22,159.13,10.88651416]
[1724540447164,10.88651416,159.22,159.14,20.0]
[1724540447761,22.8133,159.21,159.14,20.0]
[1724540447961,22.8133,159.21,159.12,20.0]
[1724540448278,22.8133,159.21,159.12,21.52975535]
[1724540448969,22.8133,159.21,159.12,20.0]
[1724540449277,22.8133,159.21,159.11,10.88651416]
[1724540449446,22.8133,159.21,159.09,20.0]
[1724540449447,22.8133,159.21,159.13,10.88651416]
[1724540449764,22.8133,159.21,159.09,20.0]
[1724540449765,22.8133,159.21,159.15,10.88651416]
[1724540452789,16.1667,159.21,159.17,10.88651416]
[1724540453081,16.1667,159.21,159.18,20.0]
[1724540454567,6.0171,159.25,159.19,10.88651416]
[1724540454568,21.6244,159.25,159.19,10.88651416]
[1724540454883,21.6244,159.25,159.13,21.5883]
[1724540454884,15.6073,159.25,159.2,65.0]
[1724540455084,15.6073,159.25,159.23,10.88651416]
[1724540455262,15.6073,159.25,159.24,20.0]
[1724540456883,15.6073,159.25,159.21,20.0]
[1724540459389,15.6073,159.25,159.12,20.0]
[1724540459390,10.88651416,159.23,159.12,20.0]
[1724540459694,26.49381416,159.25,159.14,10.88651416]
[1724540460076,26.49381416,159.25,159.16,10.88651416]
[1724540460395,26.49381416,159.25,159.13,6.5218]
[1724540460396,15.6073,159.25,159.18,10.88651416]
[1724540461077,15.6073,159.25,159.19,20.0]
[1724540463074,10.88651416,159.22,159.15,20.0]
[1724540463275,6.0171,159.24,159.16,10.88651416]
[1724540463489,6.0171,159.24,159.13,41.49282759]
[1724540463490,6.0171,159.24,159.18,10.88651416]
[1724540463702,6.0171,159.24,159.19,20.0]
[1724540464396,6.0171,159.24,159.2,12.14260621]
[1724540464585,6.0171,159.24,159.21,21.25599185]
[1724540464899,6.0171,159.24,159.21,20.0]
[1724540465678,6.0171,159.24,159.21,21.25537974]
[1724540465893,15.6073,159.25,159.21,21.25537974]
[1724540466193,15.6073,159.25,159.21,20.0]
[1724540466399,15.6073,159.25,159.18,10.88651416]
[1724540466400,15.6073,159.25,159.19,21.25599105]
[1724540466601,15.6073,159.25,159.2,10.88651416]
[1724540466778,15.6073,159.25,159.21,21.2559385]
[1724540468283,15.6073,159.25,159.21,20.0]
[1724540468479,15.6073,159.25,159.19,20.0]
[1724540468673,15.6073,159.25,159.17,20.0]
[1724540469973,15.6073,159.21,159.09,292.06654897]
[1724540470172,15.6073,159.21,159.11,10.88651416]
[1724540470373,10.88651416,159.2,159.11,10.88651416]
[1724540471402,10.88651416,159.2,159.07,402.7]
[1724540471606,16.90361416,159.18,159.09,10.88651416]
[1724540471803,6.0171,159.18,159.09,10.88651416]
[1724540472112,16.90361416,159.18,159.09,10.88651416]
[1724540472703,6.0171,159.18,159.1,20.0]
[1724540473279,6.0171,159.18,159.11,4.53742752]
[1724540474292,6.0171,159.18,159.11,4.53752897]
[1724540475103,6.0171,159.18,159.1,20.0]
[1724540476396,15.5378,159.17,159.1,20.0]
[1724540484996,15.5378,159.17,159.11,10.88651416]
[1724540485210,15.5378,159.17,159.12,20.0]
[1724540485925,15.5378,159.17,159.13,1.25635314]
[1724540486122,15.5378,159.17,159.13,10.88651416]
[1724540486416,15.5378,159.17,159.14,20.0]
[1724540486628,15.5378,159.17,159.15,12.14297765]
[1724540486798,15.5378,159.17,159.16,20.0]
[1724540488915,15.5378,159.21,159.16,20.0]
[1724540489096,15.5378,159.21,159.17,10.88651416]
[1724540489301,15.5378,159.21,159.19,10.88651416]
[1724540489828,15.5378,159.21,159.2,20.0]
[1724540489995,15.5378,159.25,159.2,20.0]
[1724540490200,15.5378,159.25,159.21,11.84237596]
[1724540490401,15.5378,159.25,159.22,20.0]
[1724540490606,15.5378,159.25,159.23,10.88651416]
[1724540490829,15.5378,159.25,159.22,20.0]
[1724540492320,15.5378,159.25,159.18,20.0]
[1724540495028,15.5378,159.25,159.17,10.88651416]
[1724540495326,15.5378,159.25,159.18,20.0]
[1724540496435,6.6144,159.24,159.18,20.0]
[1724540504733,6.6144,159.24,159.19,10.88651416]
[1724540504914,6.6144,159.24,159.14,28.90856724]
[1724540504915,15.5378,159.25,159.21,10.88651416]
[1724540505231,15.5378,159.25,159.21,12.45826878]
[1724540505545,15.5378,159.25,159.21,10.88651416]
[1724540506416,15.5378,159.25,159.2,1.57185871]
[1724540506740,15.5378,159.25,159.2,21.57185871]
[1724540506910,15.5378,159.25,159.2,20.0]
[1724540508122,15.5378,159.25,159.21,10.88651416]
[1724540508320,15.5378,159.25,159.23,10.88651416]
[1724540508545,15.5378,159.25,159.24,20.0]
[1724540509337,6.6144,159.28,159.24,20.0]
[1724540509538,15.3594,159.29,159.24,20.0]
[1724540527865,6.6144,159.32,159.25,10.88651416]
[1724540528244,6.6144,159.32,159.26,20.0]
[1724540530146,6.6144,159.32,159.25,10.88651416]
[1724540530347,6.6144,159.32,159.26,20.0]
[1724540531367,6.6144,159.32,159.24,20.0]
[1724540531543,6.6144,159.32,159.25,1.5714188]
[1724540532662,6.6144,159.32,159.24,20.0]
[1724540532843,6.6144,159.32,159.25,1.57142123]
[1724540533365,6.6144,159.32,159.24,20.0]
[1724540533366,17.50091416,159.32,159.24,20.0]
[1724540533541,17.50091416,159.32,159.25,1.57144819]
[1724540533749,17.50091416,159.32,159.23,29.00172879]
[1724540533947,17.50091416,159.32,159.24,1.57144819]
[1724540534163,17.50091416,159.32,159.25,1.57144819]
[1724540534349,17.50091416,159.32,159.26,1.57144819]
[1724540534550,17.50091416,159.32,159.23,20.0]
[1724540534551,15.00091416,159.32,159.24,1.57144819]
[1724540534871,15.00091416,159.32,159.25,1.57144819]
[1724540535057,15.00091416,159.32,159.26,1.57144819]
[1724540535262,15.00091416,159.32,159.24,4.55911527]
[1724540535456,15.00091416,159.32,159.25,1.57144792]
[1724540535644,15.00091416,159.32,159.26,1.57144792]
[1724540535966,15.00091416,159.32,159.25,20.0]
[1724540536266,15.00091416,159.32,159.23,20.0]
[1724540536468,15.00091416,159.32,159.24,9.00084366]
[1724540536666,15.00091416,159.32,159.25,21.57143806]
[1724540536967,15.00091416,159.32,159.26,1.57143806]
[1724540537158,15.00091416,159.32,159.25,20.0]
[1724540537374,15.00091416,159.32,159.26,1.57142933]
[1724540537671,15.00091416,159.32,159.24,4.5583112]
[1724540537843,15.00091416,159.32,159.25,1.57145784]
[1724540538044,21.27771416,159.32,159.26,1.57145784]
[1724540538263,21.27771416,159.32,159.25,20.0]
[1724540538469,21.27771416,159.32,159.26,1.57145785]
[1724540538651,21.27771416,159.32,159.23,20.0]
[1724540538849,4.1144,159.32,159.24,9.0244549]
[1724540539074,15.1755,159.33,159.26,10.88651416]
[1724540539248,15.1755,159.33,159.27,1.25554983]
[1724540539447,15.1755,159.33,159.28,1.57145328]
[1724540539760,15.1755,159.33,159.29,1.57145328]
[1724540539962,15.1755,159.33,159.26,21.57126262]
[1724540540169,15.1755,159.33,159.27,1.5712188]
[1724540540352,15.1755,159.33,159.28,1.5712188]
[1724540540551,15.1755,159.33,159.29,1.5712188]
[1724540540859,15.1755,159.33,159.27,2.89143705]
[1724540541060,15.1755,159.33,159.28,1.57118193]
[1724540541365,15.1755,159.33,159.29,1.57118193]
[1724540541574,15.1755,159.33,159.27,1.25505979]
[1724540541751,15.1755,159.33,159.28,12.45762395]
[1724540541950,15.1755,159.33,159.29,21.57110979]
[1724540542272,15.1755,159.33,159.3,1.5710419]
[1724540542450,15.1755,159.33,159.29,20.0]
[1724540542649,15.1755,159.33,159.3,1.57101567]
[1724540542956,15.1755,159.33,159.31,1.57101567]
[1724540543155,15.1755,159.33,159.29,20.0]
[1724540543462,15.952,159.37,159.3,12.45752701]
[1724540543664,15.952,159.37,159.31,21.57101285]
[1724540543981,15.952,159.37,159.31,20.0]
[1724540544478,15.952,159.37,159.32,1.57077445]
[1724540544772,15.952,159.37,159.33,1.57077445]
[1724540544958,15.952,159.37,159.31,20.0]
[1724540545351,15.952,159.37,159.32,4.46068587]
[1724540545576,15.952,159.37,159.33,1.57071516]
[1724540545951,15.952,159.37,159.32,2.88997071]
[1724540545952,15.952,159.37,159.34,1.57071516]
[1724540546153,15.952,159.37,159.32,2.88997071]
[1724540546473,15.952,159.37,159.33,1.57063528]
[1724540546646,15.952,159.37,159.34,1.57063528]
[1724540546853,15.952,159.37,159.33,1.57063528]
[1724540547051,15.952,159.37,159.31,20.0]
[1724540547052,26.83851416,159.37,159.31,20.0]
[1724540547345,10.88651416,159.35,159.26,10.88651416]
[1724540547550,10.88651416,159.35,159.27,24.45858704]
[1724540547778,10.88651416,159.35,159.28,11.84271134]
[1724540547946,10.88651416,159.35,159.29,21.5709646]
[1724540548151,10.88651416,159.35,159.3,1.5709646]
[1724540548479,10.88651416,159.35,159.31,1.57095511]
[1724540548780,10.88651416,159.35,159.3,1.57097237]
[1724540548979,10.88651416,159.35,159.28,20.0]
[1724540549275,10.88651416,159.35,159.29,4.45719703]
[1724540549482,10.88651416,159.35,159.3,1.57097257]
[1724540549657,10.88651416,159.35,159.31,1.57097257]
[1724540549954,10.88651416,159.35,159.3,1.57097257]
[1724540550156,10.88651416,159.35,159.31,1.57097257]
[1724540550356,10.88651416,159.35,159.29,20.0]
[1724540550554,10.88651416,159.35,159.3,1.57096391]
[1724540550780,10.88651416,159.35,159.31,1.57096391]
[1724540550962,10.88651416,159.35,159.29,4.45530659]
[1724540551166,10.88651416,159.35,159.3,1.57096362]
[1724540551375,10.88651416,159.35,159.31,1.57096362]
[1724540551566,10.88651416,159.35,159.28,2.88434297]
[1724540551770,10.88651416,159.35,159.29,1.57097235]
[1724540551966,15.952,159.37,159.3,1.57097235]
[1724540552279,26.83851416,159.37,159.31,1.57097235]
[1724540552478,26.83851416,159.37,159.28,2.88235733]
[1724540552667,26.83851416,159.37,159.29,1.57096333]
[1724540552859,26.83851416,159.37,159.3,1.57096333]
[1724540553056,26.83851416,159.37,159.31,1.57096333]
[1724540553262,26.83851416,159.37,159.28,2.88235733]
[1724540553475,26.83851416,159.37,159.29,1.57096309]
[1724540553780,33.38566414,159.37,159.3,1.57096309]
[1724540553974,33.38566414,159.37,159.31,1.57096309]
[1724540554171,33.38566414,159.37,159.29,2.88235733]
[1724540554479,33.38566414,159.37,159.3,1.57092854]
[1724540554680,33.38566414,159.37,159.31,1.57092854]
[1724540554886,33.38566414,159.37,159.32,1.57092854]
[1724540555182,33.38566414,159.37,159.3,2.88235733]
[1724540555368,33.38566414,159.37,159.31,1.57089363]
[1724540555565,33.38566414,159.37,159.32,1.57089363]
[1724540555771,15.952,159.37,159.3,30.88651416]
[1724540555962,15.952,159.37,159.31,4.45340071]
[1724540556168,15.952,159.37,159.32,1.57081452]
[1724540556360,15.952,159.37,159.31,20.0]
[1724540556673,15.952,159.37,159.32,1.57081438]
[1724540556882,15.952,159.37,159.31,20.0]
[1724540557097,15.952,159.37,159.32,1.57081311]
[1724540557392,15.952,159.37,159.32,20.0]
[1724540557768,15.952,159.37,159.32,30.88651416]
[1724540557977,6.2727,159.4,159.34,10.88651416]
[1724540558183,16.1566,159.41,159.35,0.93870549]
[1724540558383,16.1566,159.41,159.36,10.88651416]
[1724540559486,16.1566,159.41,159.35,1.57041248]
[1724540559700,16.1566,159.41,159.32,20.0]
[1724540559701,27.04311416,159.41,159.33,1.57041248]
[1724540559992,27.04311416,159.41,159.34,1.57041248]
[1724540561285,27.04311416,159.41,159.34,4.44677666]
[1724540561486,27.04311416,159.41,159.34,24.44677666]
[1724540561676,16.1566,159.41,159.34,30.88651416]
[1724540562073,16.1566,159.41,159.35,1.57050632]
[1724540562281,16.1566,159.41,159.35,21.57050632]
[1724540562482,16.1566,159.41,159.35,20.0]
[1724540564380,16.1566,159.41,159.36,55.88651416]
[1724540564707,16.1566,159.41,159.37,20.0]
[1724540568401,16.1566,159.41,159.35,10.88651416]
[1724540568588,16.1566,159.41,159.36,20.0]
[1724540575303,16.1566,159.41,159.3,17.08961416]
[1724540575507,27.04311416,159.41,159.32,10.88651416]
[1724540575723,27.04311416,159.41,159.32,15.33244158]
[1724540575899,27.04311416,159.41,159.33,1.57049393]
[1724540576790,27.04311416,159.41,159.32,10.88651416]
[1724540576993,16.1566,159.41,159.34,10.88651416]
[1724540577189,16.1566,159.41,159.35,20.0]
[1724540578115,16.1566,159.41,159.33,20.0]
[1724540578327,16.1566,159.41,159.34,45.0]
[1724540578495,27.04311416,159.41,159.35,20.0]
[1724540578921,10.88651416,159.39,159.35,20.0]
[1724540579096,10.88651416,159.37,159.28,10.88651416]
[1724540579296,10.88651416,159.37,159.29,1.57081769]
[1724540580223,10.88651416,159.37,159.28,10.88651416]
[1724540580399,15.569,159.38,159.3,10.88651416]
[1724540580725,15.569,159.38,159.31,20.0]
[1724540580900,15.569,159.38,159.32,45.0]
[1724540581399,15.569,159.38,159.33,20.0]
[1724540581707,10.88651416,159.37,159.33,20.0]
[1724540581911,10.88651416,159.37,159.29,20.0]
[1724540582114,10.88651416,159.37,159.3,1.57078552]
[1724540582321,10.88651416,159.37,159.31,1.57078552]
[1724540582506,10.88651416,159.37,159.3,1.5707765]
[1724540582708,10.88651416,159.37,159.31,1.5707765]
[1724540582907,10.88651416,159.37,159.3,1.5707765]
[1724540583129,10.88651416,159.37,159.31,1.5707765]
[1724540583304,10.88651416,159.37,159.29,20.0]
[1724540583513,10.88651416,159.37,159.3,1.57086956]
[1724540584005,10.88651416,159.37,159.28,1.57086956]
[1724540584224,10.88651416,159.37,159.29,1.57086956]
[1724540584531,10.88651416,159.37,159.3,1.57086956]
[1724540584733,10.88651416,159.37,159.3,1.57096776]
[1724540584933,15.569,159.38,159.3,1.57096778]
[1724540585232,10.88651416,159.37,159.29,20.0]
[1724540585534,10.88651416,159.37,159.3,1.57096253]
[1724540585702,10.88651416,159.37,159.29,20.0]
[1724540585902,10.88651416,159.37,159.3,1.57096253]
[1724540586102,10.88651416,159.37,159.29,20.0]
[1724540586323,10.88651416,159.37,159.3,1.57096253]
[1724540586511,15.569,159.36,159.31,1.57096253]
[1724540586706,10.88651416,159.35,159.3,1.57096253]
[1724540586926,10.88651416,159.35,159.31,1.57096253]
[1724540587111,10.88651416,159.35,159.3,1.57096253]
[1724540587320,10.88651416,159.35,159.31,1.57096253]
[1724540587522,10.88651416,159.35,159.3,1.57096253]
[1724540587732,10.88651416,159.35,159.31,1.57096253]
[1724540587933,10.88651416,159.35,159.3,1.57096253]
[1724540588144,10.88651416,159.35,159.31,1.57096253]
[1724540588334,10.88651416,159.33,159.29,1.57096253]
[1724540588519,17.23981416,159.34,159.3,1.57096253]
[1724540588728,17.23981416,159.34,159.24,10.88651416]
[1724540589042,17.23981416,159.34,159.25,1.57101832]
[1724540589237,17.23981416,159.34,159.26,1.57101832]
[1724540589425,17.23981416,159.34,159.27,1.57101832]
[1724540589622,17.23981416,159.34,159.28,1.57101832]
[1724540589923,17.23981416,159.34,159.29,1.57101832]
[1724540590235,17.23981416,159.34,159.3,1.57101832]
[1724540590438,17.23981416,159.34,159.25,20.0]
[1724540590609,17.23981416,159.34,159.26,46.57102185]
[1724540590809,17.23981416,159.34,159.27,21.57102185]
[1724540591139,17.23981416,159.34,159.28,1.57102185]
[1724540591339,17.23981416,159.34,159.29,1.57102185]
[1724540591526,17.23981416,159.34,159.3,1.57102185]
[1724540591712,17.23981416,159.34,159.27,20.0]
[1724540591913,17.23981416,159.34,159.28,1.57101253]
[1724540592314,17.23981416,159.34,159.29,1.57101253]
[1724540592612,17.23981416,159.34,159.3,1.57101253]
[1724540592813,17.23981416,159.34,159.28,1.57101253]
[1724540593112,15.6225,159.33,159.29,1.57101253]
[1724540593438,15.6225,159.33,159.3,1.57101253]
[1724540593615,15.6225,159.33,159.28,1.57101253]
[1724540593817,15.6225,159.33,159.23,1.57134565]
[1724540593818,10.88651416,159.31,159.23,1.57134565]
[1724540594026,10.88651416,159.31,159.24,1.57134565]
[1724540594354,10.88651416,159.31,159.25,1.57134565]
[1724540594550,10.88651416,159.31,159.26,1.57134565]
[1724540594762,10.88651416,159.31,159.24,1.57134565]
[1724540594960,10.88651416,159.31,159.25,1.57136735]
[1724540595131,10.88651416,159.31,159.26,1.57136735]
[1724540595331,10.88651416,159.31,159.23,20.0]
[1724540595527,10.88651416,159.31,159.24,1.57134959]
[1724540595733,10.88651416,159.31,159.25,1.57134959]
[1724540595949,10.88651416,159.31,159.26,1.57134959]
[1724540596144,10.88651416,159.31,159.24,1.57134959]
[1724540596332,10.88651416,159.31,159.25,1.57134959]
[1724540596535,10.88651416,159.31,159.24,1.57134959]
[1724540596731,10.88651416,159.31,159.25,1.57134959]
[1724540596953,26.50901416,159.33,159.24,1.57134959]
[1724540597246,15.6225,159.33,159.26,10.88651416]
[1724540597452,10.88651416,159.32,159.27,20.0]
[1724540598033,10.88651416,159.32,159.25,20.0]
[1724540598235,10.88651416,159.32,159.26,1.57133829]
[1724540600333,10.88651416,159.32,159.25,20.0]
[1724540604535,10.88651416,159.3,159.25,20.0]
[1724540604858,10.88651416,159.3,159.23,20.0]
[1724540605161,10.88651416,159.3,159.24,1.57138598]
[1724540609570,15.6225,159.29,159.24,1.57138598]
[1724540609753,6.5557,159.28,159.19,10.88651416]
[1724540610061,6.5557,159.28,159.2,1.57161835]
[1724540610268,6.5557,159.28,159.2,6.15306771]
[1724540610868,6.5557,159.28,159.2,6.15310407]
[1724540611070,6.5557,159.28,159.21,20.0]
[1724540611244,17.44221416,159.28,159.21,20.0]
[1724540611444,17.44221416,159.28,159.2,20.0]
[1724540611638,17.44221416,159.28,159.21,1.57165471]
[1724540613751,17.44221416,159.28,159.21,1.57166353]
[1724540614544,17.44221416,159.28,159.21,1.5716548]
[1724540616676,15.0124,159.27,159.21,1.5716548]
[1724540616844,15.0124,159.27,159.19,6.15914199]
[1724540617047,15.0124,159.27,159.2,20.0]
[1724540617474,15.0124,159.27,159.21,1.57169533]
[1724540617862,15.0124,159.27,159.2,1.57169533]
[1724540618265,15.0124,159.27,159.2,6.15913994]
[1724540618462,15.0124,159.27,159.21,20.0]